bitfinex/quotes_SOLUSD_20260311
["timestamp","ask_amount","ask_price","bid_price","bid_amount"]
[1773228629054,3.54515204,85.02,84.991,1.56133203]
[1773228629369,7.79431893,85.019,84.991,1.56133203]
[1773228629561,7.79431893,85.018,84.99,3.54515204]
[1773228629865,1.94499323,85.016,84.99,3.54515204]
[1773228630069,1.94499323,85.014,84.981,1.56178283]
[1773228630369,1.94499323,85.012,84.981,1.56178283]
[1773228630571,1.94499323,85.01,84.981,1.56178283]
[1773228630892,1.94499323,85.008,84.981,1.56178283]
[1773228631162,1.94499323,85.006,84.981,1.56178283]
[1773228631366,1.94499323,85.004,84.981,1.56178283]
[1773228631567,1.94499323,85.002,84.981,1.56178283]
[1773228631875,1.94499323,85.0,84.981,1.56178283]
[1773228632168,7.79431893,84.999,84.981,1.56178283]
[1773228632351,1.94499323,85.0,84.981,1.56178283]
[1773228634273,7.79981393,84.999,84.981,1.56178283]
[1773228634572,7.79981393,84.998,84.981,1.56178283]
[1773228634766,7.79981393,84.997,84.981,1.56178283]
[1773228634969,7.79981393,84.996,84.981,1.56178283]
[1773228635171,7.79981393,84.995,84.981,1.56178283]
[1773228635480,7.79981393,84.994,84.981,1.56178283]
[1773228635653,1.94499323,85.006,84.981,1.56178283]
[1773228635857,1.94499323,85.004,84.981,1.56178283]
[1773228636075,7.80508558,85.003,84.981,1.56178283]
[1773228636263,7.80508558,85.002,84.981,1.56178283]
[1773228636555,7.80508558,85.001,84.981,1.56178283]
[1773228636881,7.80508558,85.0,84.981,1.56178283]
[1773228637177,7.80508558,84.999,84.981,1.56178283]
[1773228637354,1.94499323,85.004,84.971,0.14216157]
[1773228637355,1.94499323,85.004,84.99,3.54515204]
[1773228637555,7.80906921,85.003,84.987,1.56544549]
[1773228637865,7.80906921,85.002,84.987,1.56544549]
[1773228638068,7.80906921,85.001,84.987,1.56544549]
[1773228638272,7.80906921,85.0,84.987,1.56544549]
[1773228638461,7.80906921,84.999,84.987,1.56544549]
[1773228638662,7.80906921,84.998,84.987,1.56544549]
[1773228638972,1.94499323,85.004,84.987,1.56544549]
[1773228639269,7.8104401,85.003,84.987,1.56544549]
[1773228639457,7.8104401,85.002,84.987,1.56544549]
[1773228639659,7.8104401,85.001,84.987,1.56544549]
[1773228639878,7.8104401,85.0,84.991,1.56713167]
[1773228640076,13.10250025,85.031,84.99,3.54515204]
[1773228640077,1.94499323,85.029,84.993,1.56713167]
[1773228640253,7.81326173,85.028,85.011,1.56713167]
[1773228640458,3.54515204,85.05,85.011,1.56713167]
[1773228640459,7.81326173,85.027,85.011,1.56713167]
[1773228640660,7.81326173,85.026,85.02,3.54515204]
[1773228640878,1.94499323,85.039,85.02,3.54515204]
[1773228640879,7.0017468,85.025,85.02,3.54515204]
[1773228641058,1.94499323,85.039,85.02,3.54515204]
[1773228641577,1.94499323,85.037,85.011,0.75670883]
[1773228642382,1.94499323,85.037,85.01,3.54515204]
[1773228642672,1.94499323,85.029,85.0,3.54515204]
[1773228650488,1.94499323,85.029,85.001,0.76101204]
[1773228650683,1.85043817,85.038,85.011,0.76101204]
[1773228650872,1.85043817,85.038,84.996,0.14216157]
[1773228650873,1.85043817,85.038,85.02,3.54515204]
[1773228652370,9.72701911,85.047,85.03,3.54515204]
[1773228652575,1.85043817,85.051,85.03,3.54515204]
[1773228652769,1.85043817,85.051,85.005,3.69383402]
[1773228652770,7.81947493,85.05,85.04,3.54515204]
[1773228652970,7.44927106,85.08,85.044,0.76171]
[1773228653168,13.03487817,85.117,85.07,3.54515204]
[1773228653169,1.85043817,85.094,85.07,3.54515204]
[1773228653683,1.85043817,85.089,85.05,3.54515204]
[1773228653887,1.85043817,85.079,85.05,3.54515204]
[1773228654188,1.85043817,85.079,85.04,3.54515204]
[1773228654682,1.85043817,85.069,85.04,3.54515204]
[1773228657281,1.85043817,85.069,85.05,3.54515204]
[1773228657489,1.85043817,85.087,85.061,0.76338594]
[1773228657880,1.85043817,85.087,85.06,3.54515204]
[1773228658766,1.90528445,85.079,85.04,3.54515204]
[1773228662679,1.90528445,85.069,85.03,3.54515204]
[1773228662990,1.90528445,85.059,85.022,0.76527338]
[1773228663181,1.90528445,85.059,85.03,3.54515204]
[1773228664974,1.90528445,85.059,85.031,0.76587401]
[1773228667474,1.90528445,85.059,85.03,3.54515204]
[1773228667691,7.7818057,85.058,85.02,3.54515204]
[1773228667877,1.90528445,85.056,85.03,3.54515204]
[1773228669178,1.90528445,85.056,85.03,4.31218646]
[1773228670281,1.90528445,85.056,85.024,0.76731624]
[1773228670476,1.90528445,85.056,85.03,3.54515204]
[1773228673581,1.90528445,85.056,85.021,0.76836472]
[1773228673792,1.90528445,85.056,85.03,3.54515204]
[1773228674001,1.90528445,85.056,85.031,0.76836472]
[1773228674591,1.90528445,85.056,85.03,3.54515204]
[1773228675685,1.90528445,85.056,85.031,0.76881364]
[1773228676293,1.90528445,85.054,85.03,3.54515204]
[1773228676495,1.90528445,85.054,85.025,0.76906553]
[1773228677408,1.90528445,85.052,85.02,3.54515204]
[1773228677590,1.90528445,85.05,85.021,0.76929711]
[1773228678495,1.90528445,85.05,85.03,3.54515204]
[1773228679406,1.90528445,85.05,85.03,4.31467618]
[1773228679700,1.90528445,85.05,85.03,4.31026406]
[1773228680699,1.90528445,85.05,85.021,0.77019153]
[1773228681204,7.80037582,85.049,85.021,0.77019153]
[1773228681415,1.8947877,85.048,85.021,0.77019153]
[1773228683203,1.8947877,85.046,85.021,0.77019153]
[1773228685301,9.70400355,85.045,85.021,0.77019153]
[1773228685610,1.8947877,85.045,85.021,0.77019153]
[1773228685996,1.8947877,85.045,85.03,3.54073992]
[1773228687489,0.14216157,85.085,85.009,2.08]
[1773228687490,1.8947877,85.043,85.01,4.31236087]
[1773228687689,1.8947877,85.041,85.011,0.77162095]
[1773228687911,1.8947877,85.041,85.02,3.54073992]
[1773228690218,7.81465085,85.04,85.02,3.54073992]
[1773228690512,3.54073992,85.05,85.02,3.54073992]
[1773228690513,1.8947877,85.039,85.02,3.54073992]
[1773228691419,3.54073992,85.07,85.031,1.90834836]
[1773228691714,7.81910107,85.069,85.05,5.44908828]
[1773228692014,3.54073992,85.08,85.043,1.90834836]
[1773228693291,1.8947877,85.079,85.043,1.90834836]
[1773228693699,1.8947877,85.079,85.05,3.54073992]
[1773228695811,1.8947877,85.079,85.05,5.44908828]
[1773228697212,1.8947877,85.079,85.05,3.54073992]
[1773228699020,1.8947877,85.093,85.061,1.90834836]
[1773228699408,1.8947877,85.1,85.071,1.90834836]
[1773228699610,1.8947877,85.1,85.05,3.54073992]
[1773228699611,1.8947877,85.1,85.081,1.32054235]
[1773228700013,1.8947877,85.1,85.05,3.54073992]
[1773228700014,1.8947877,85.1,85.067,1.90834836]
[1773228700224,1.8947877,85.1,85.07,3.54073992]
[1773228700614,1.8947877,85.1,85.07,5.44908828]
[1773228701429,1.8947877,85.099,85.064,1.90834836]
[1773228701622,1.8947877,85.099,85.07,3.54073992]
[1773228703529,1.8947877,85.099,85.071,1.90834836]
[1773228703931,1.8947877,85.097,85.071,1.90834836]
[1773228704118,1.8947877,85.095,85.071,1.90834836]
[1773228704318,1.8947877,85.093,85.071,1.90834836]
[1773228704529,1.8947877,85.091,85.071,1.90834836]
[1773228704705,7.82902867,85.09,85.071,1.90834836]
[1773228704911,7.82902867,85.089,85.071,1.90834836]
[1773228705111,1.8947877,85.097,85.071,1.90834836]
[1773228705310,7.8252994,85.096,85.071,1.90834836]
[1773228705528,7.8252994,85.095,85.071,1.90834836]
[1773228705725,7.8252994,85.094,85.071,1.90834836]
[1773228706028,7.8252994,85.093,85.071,1.90834836]
[1773228706231,1.8947877,85.097,85.071,1.90834836]
[1773228706232,7.8252994,85.092,85.071,1.90834836]
[1773228706427,1.8947877,85.097,85.071,1.90834836]
[1773228706622,7.82681482,85.096,85.08,3.54073992]
[1773228706827,7.82681482,85.095,85.08,3.54073992]
[1773228707025,7.82681482,85.094,85.08,3.54073992]
[1773228707334,7.82681482,85.093,85.08,3.54073992]
[1773228707512,1.8947877,85.097,85.08,3.54073992]
[1773228707713,7.82389633,85.096,85.08,3.54073992]
[1773228708007,7.82389633,85.095,85.08,3.54073992]
[1773228708218,9.71868403,85.094,85.077,1.90834836]
[1773228708424,1.8947877,85.094,85.077,1.90834836]
[1773228708731,1.8947877,85.094,85.071,1.90834836]
[1773228708927,1.8947877,85.109,85.081,1.90834836]
[1773228709129,9.71683022,85.108,85.081,1.90834836]
[1773228709433,1.8947877,85.106,85.081,1.90834836]
[1773228709628,9.72065474,85.105,85.081,1.90834836]
[1773228709831,0.2,85.12,85.1,3.54073992]
[1773228710828,2.09861222,85.12,85.1,3.54073992]
[1773228712628,1.89861222,85.109,85.065,0.4441496]
[1773228712816,1.89861222,85.109,85.07,3.98488952]
[1773228713016,1.89861222,85.109,85.071,0.4441496]
[1773228713730,1.89861222,85.109,85.08,3.54073992]
[1773228721840,7.80541601,85.108,85.08,3.54073992]
[1773228722041,1.99567888,85.106,85.08,3.54073992]
[1773228722233,1.99567888,85.104,85.08,3.54073992]
[1773228726045,0.2,85.12,85.091,0.43589945]
[1773228726241,1.99567888,85.131,85.111,0.23589945]
[1773228726441,1.99567888,85.131,85.12,3.54073992]
[1773228726644,1.99567888,85.149,85.12,3.77606317]
[1773228726851,1.99567888,85.147,85.13,3.54073992]
[1773228727037,1.99567888,85.145,85.13,3.54073992]
[1773228727228,0.2,85.15,85.13,3.54073992]
[1773228727229,1.99567888,85.149,85.13,3.54073992]
[1773228727446,1.99567888,85.147,85.12,3.77606317]
[1773228727743,7.80473977,85.148,85.12,3.77606317]
[1773228727744,1.99567888,85.145,85.12,3.54073992]
[1773228727952,1.99567888,85.143,85.11,3.54073992]
[1773228728127,1.99567888,85.139,85.098,0.23475366]
[1773228728332,1.99567888,85.139,85.1,3.54073992]
[1773228728541,1.99567888,85.137,85.1,3.54073992]
[1773228728737,1.99567888,85.135,85.1,3.54073992]
[1773228728938,1.99567888,85.133,85.11,3.54073992]
[1773228729135,1.99567888,85.131,85.11,3.54073992]
[1773228729423,1.99567888,85.129,85.11,3.54073992]
[1773228730924,1.99567888,85.135,85.12,3.54073992]
[1773228731147,1.99567888,85.135,85.111,0.23308386]
[1773228731543,1.99567888,85.135,85.11,3.54073992]
[1773228732040,1.99567888,85.135,85.111,0.23253894]
[1773228732227,1.99567888,85.149,85.12,3.54073992]
[1773228732427,1.99567888,85.147,85.12,3.54073992]
[1773228732635,1.99567888,85.145,85.12,3.54073992]
[1773228733042,1.99567888,85.143,85.12,3.54073992]
[1773228733349,1.99567888,85.141,85.12,3.54073992]
[1773228734130,7.80913409,85.14,85.12,3.54073992]
[1773228734333,1.99567888,85.149,85.121,0.23094145]
[1773228734648,7.80914696,85.148,85.121,0.23094145]
[1773228734851,1.99567888,85.146,85.121,0.23094145]
[1773228735045,1.99567888,85.146,85.13,3.54073992]
[1773228735246,7.81169007,85.145,85.13,3.54073992]
[1773228735554,1.99567888,85.146,85.13,3.54073992]
[1773228735751,7.58126769,85.145,85.14,3.54073992]
[1773228736050,0.2,85.15,85.136,0.23042114]
[1773228736349,0.2,85.15,85.13,3.54073992]
[1773228737339,0.2,85.15,85.14,3.54073992]
[1773228737962,0.2,85.16,85.14,3.54073992]
[1773228737963,2.22703174,85.16,85.14,3.54073992]
[1773228739539,2.22703174,85.16,85.13,3.53188477]
[1773228739848,2.02703174,85.159,85.12,3.53188477]
[1773228740030,2.02703174,85.149,85.12,3.53188477]
[1773228740236,2.02703174,85.149,85.11,3.53188477]
[1773228740654,2.02703174,85.139,85.11,3.53188477]
[1773228741153,2.02703174,85.139,85.1,3.53188477]
[1773228742551,2.02703174,85.139,85.11,3.53188477]
[1773228743051,2.02703174,85.149,85.12,3.53188477]
[1773228743251,2.02703174,85.149,85.11,3.53188477]
[1773228747757,2.02703174,85.139,85.11,3.53188477]
[1773228747960,2.02703174,85.137,85.11,3.53188477]
[1773228749455,2.02703174,85.137,85.091,0.14216157]
[1773228749659,2.02703174,85.137,85.11,3.53188477]
[1773228752268,2.02703174,85.135,85.11,3.53188477]
[1773228752561,104.9,85.159,85.11,3.53188477]
[1773228752562,2.02703174,85.133,85.11,3.53188477]
[1773228752863,2.02703174,85.131,85.11,3.53188477]
[1773228754463,3.53188477,85.15,85.12,3.53188477]
[1773228754464,2.02703174,85.149,85.12,3.53188477]
[1773228754654,2.02703174,85.147,85.12,3.53188477]
[1773228754854,2.02703174,85.145,85.12,3.53188477]
[1773228755050,3.53188477,85.15,85.12,3.53188477]
[1773228755051,2.02703174,85.143,85.12,3.53188477]
[1773228755251,3.53188477,85.15,85.12,3.53188477]
[1773228755252,2.02703174,85.141,85.12,3.53188477]
[1773228755473,2.02703174,85.139,85.12,3.53188477]
[1773228755674,2.02703174,85.137,85.12,3.53188477]
[1773228755851,2.02703174,85.135,85.12,3.53188477]
[1773228757067,2.02703174,85.149,85.12,3.53188477]
[1773228757279,2.02703174,85.147,85.12,3.53188477]
[1773228757450,108.63188477,85.16,85.12,3.53188477]
[1773228757451,2.02703174,85.145,85.12,3.53188477]
[1773228757746,2.02703174,85.143,85.12,3.53188477]
[1773228757950,7.81980703,85.142,85.12,3.53188477]
[1773228758149,7.81980703,85.141,85.12,3.53188477]
[1773228758372,9.84683877,85.14,85.12,3.53188477]
[1773228758549,7.81980703,85.139,85.12,3.53188477]
[1773228758848,7.81986159,85.138,85.12,3.53188477]
[1773228759051,2.02703174,85.138,85.12,3.53188477]
[1773228761169,7.82147372,85.137,85.12,3.53188477]
[1773228761477,2.02703174,85.138,85.12,3.53188477]
[1773228761774,9.84847518,85.137,85.12,3.53188477]
[1773228761962,2.02703174,85.137,85.12,3.53188477]
[1773228762579,2.02703174,85.157,85.12,3.53188477]
[1773228762760,2.02703174,85.155,85.12,3.53188477]
[1773228762960,2.02703174,85.153,85.12,3.53188477]
[1773228763276,2.02703174,85.151,85.12,3.53188477]
[1773228763477,2.02703174,85.149,85.12,3.53188477]
[1773228763673,2.02703174,85.147,85.12,3.53188477]
[1773228763880,2.02703174,85.145,85.12,3.53188477]
[1773228764073,2.02703174,85.143,85.12,3.53188477]
[1773228764386,2.02703174,85.141,85.12,3.53188477]
[1773228765266,2.02703174,85.139,85.11,3.53188477]
[1773228765462,2.02703174,85.137,85.11,3.53188477]
[1773228765787,2.02703174,85.135,85.11,3.53188477]
[1773228766160,2.02703174,85.133,85.11,3.53188477]
[1773228767184,7.83479623,85.132,85.11,3.53188477]
[1773228767383,2.02703174,85.133,85.11,3.53188477]
[1773228767567,7.83479498,85.132,85.11,3.53188477]
[1773228767883,2.02703174,85.133,85.11,3.53188477]
[1773228768082,7.83479291,85.132,85.11,3.53188477]
[1773228768264,7.83479291,85.131,85.11,3.53188477]
[1773228768463,2.02703174,85.133,85.11,3.53188477]
[1773228768464,7.83479291,85.13,85.11,3.53188477]
[1773228768663,2.02703174,85.133,85.11,3.53188477]
[1773228768874,2.02703174,85.131,85.11,3.53188477]
[1773228769179,7.83795762,85.13,85.11,3.53188477]
[1773228769386,7.83795762,85.129,85.11,3.53188477]
[1773228769581,7.83795762,85.128,85.11,3.53188477]
[1773228769886,2.02703174,85.131,85.11,3.53188477]
[1773228770079,7.8423905,85.13,85.11,3.53188477]
[1773228770280,7.8423905,85.129,85.11,3.53188477]
[1773228770475,7.8423905,85.128,85.11,3.53188477]
[1773228770664,7.8423905,85.127,85.11,3.53188477]
[1773228770864,7.8423905,85.126,85.11,3.53188477]
[1773228771079,2.02703174,85.131,85.11,3.53188477]
[1773228771279,7.84906872,85.13,85.11,3.53188477]
[1773228771472,7.84906872,85.129,85.11,3.53188477]
[1773228771676,7.84906872,85.128,85.11,3.53188477]
[1773228771876,7.84906872,85.127,85.11,3.53188477]
[1773228772079,7.84906872,85.126,85.11,3.53188477]
[1773228772272,7.84906872,85.125,85.11,3.53188477]
[1773228772474,2.02703174,85.131,85.11,3.53188477]
[1773228772683,7.8493208,85.13,85.11,3.53188477]
[1773228772989,7.8493208,85.129,85.11,3.53188477]
[1773228773192,7.8493208,85.128,85.11,3.53188477]
[1773228773392,2.02703174,85.131,85.11,3.53188477]
[1773228773393,7.8493208,85.127,85.11,3.53188477]
[1773228773594,7.8493208,85.126,85.11,3.53188477]
[1773228773788,2.02703174,85.131,85.11,3.53188477]
[1773228773988,7.84941848,85.13,85.12,3.53188477]
[1773228774292,7.84941848,85.129,85.12,3.53188477]
[1773228774476,7.84941848,85.128,85.12,3.53188477]
[1773228774795,2.02703174,85.151,85.12,3.53188477]
[1773228774970,2.02703174,85.149,85.12,3.53188477]
[1773228775172,11.80949479,85.147,85.12,3.53188477]
[1773228775370,2.02703174,85.145,85.12,3.53188477]
[1773228775695,2.02703174,85.143,85.12,3.53188477]
[1773228775870,2.02703174,85.141,85.12,3.53188477]
[1773228776072,2.02703174,85.139,85.12,3.53188477]
[1773228776296,2.02703174,85.137,85.12,3.53188477]
[1773228776480,2.02703174,85.135,85.12,3.53188477]
[1773228776790,2.02703174,85.133,85.11,3.53188477]
[1773228776982,9.87807474,85.132,85.11,3.53188477]
[1773228777185,9.87807474,85.131,85.11,3.53188477]
[1773228777381,7.851043,85.13,85.11,3.53188477]
[1773228777571,7.851043,85.129,85.11,3.53188477]
[1773228777778,7.851043,85.128,85.11,3.53188477]
[1773228777978,7.851043,85.127,85.11,3.53188477]
[1773228778280,7.851043,85.126,85.11,3.53188477]
[1773228778482,7.851043,85.125,85.11,3.53188477]
[1773228778686,7.851043,85.124,85.11,3.53188477]
[1773228778878,2.02703174,85.131,85.11,3.53188477]
[1773228779087,9.78246305,85.146,85.11,3.53188477]
[1773228779088,9.88039726,85.13,85.11,3.53188477]
[1773228779297,7.85336552,85.129,85.11,3.53188477]
[1773228779495,7.85336552,85.128,85.11,3.53188477]
[1773228779696,7.85336552,85.127,85.11,3.53188477]
[1773228779887,7.85336552,85.126,85.11,3.53188477]
[1773228780090,7.85336552,85.125,85.11,3.53188477]
[1773228780287,2.02703174,85.123,85.1,3.53188477]
[1773228780491,13.03487817,85.156,85.046,19.73814866]
[1773228780492,2.02703174,85.121,85.09,3.53188477]
[1773228780683,2.02703174,85.119,85.1,3.53188477]
[1773228781036,2.02703174,85.154,85.11,3.53188477]
[1773228781210,2.02703174,85.154,85.13,3.53188477]
[1773228782207,2.02703174,85.154,85.12,3.53188477]
[1773228783304,2.02703174,85.153,85.12,3.53188477]
[1773228784201,9.78246305,85.153,85.12,3.53188477]
[1773228784385,2.02703174,85.152,85.12,3.53188477]
[1773228784581,2.02703174,85.151,85.12,3.53188477]
[1773228784993,2.02703174,85.149,85.11,3.53188477]
[1773228785203,2.02703174,85.145,85.11,3.53188477]
[1773228787217,2.02703174,85.145,85.12,3.53188477]
[1773228795725,2.02703174,85.159,85.13,3.53188477]
[1773228798027,2.02703174,85.159,85.12,3.53188477]
[1773228799712,2.02703174,85.159,85.13,3.53188477]
[1773228801718,2.02703174,85.159,85.13,3.53195368]
[1773228803933,2.02703174,85.159,85.14,3.53195368]
[1773228806029,2.02703174,85.159,85.13,3.53195368]
[1773228813236,2.02703174,85.159,85.104,0.14216157]
[1773228813540,2.02703174,85.159,85.13,3.53195368]
[1773228818044,2.02703174,85.159,85.12,3.53195368]
[1773228818428,2.02703174,85.159,85.106,3.69383402]
[1773228818631,2.02703174,85.159,85.13,3.53195368]
[1773228821144,2.02703174,85.159,85.103,2.08]
[1773228821464,2.02703174,85.159,85.12,3.53195368]
[1773228824958,108.63195368,85.16,85.1,3.53195368]
[1773228824959,2.02703174,85.129,85.1,3.53195368]
[1773228834471,2.02703174,85.129,85.1,3.53195368]
[1773228835462,2.02703174,85.119,85.08,3.53195368]
[1773228839272,2.02703174,85.109,85.07,5.61195368]
[1773228839968,2.02703174,85.109,85.07,3.53195368]
[1773228841875,2.02703174,85.099,85.061,2.08]
[1773228842068,2.02703174,85.099,85.07,3.53195368]
[1773228843678,2.02703174,85.099,85.06,3.53195368]
[1773228845262,2.28,85.139,85.05,42.51444958]
[1773228845263,2.02703174,85.079,85.05,42.51444958]
[1773228845468,2.02703174,85.079,85.05,46.04640326]
[1773228845668,0.14216157,85.115,85.06,3.53195368]
[1773228845669,2.02703174,85.089,85.06,3.53195368]
[1773228846061,2.02703174,85.089,85.05,46.04640326]
[1773228848679,2.02703174,85.079,85.05,42.51444958]
[1773228850866,2.02703174,85.069,85.05,42.51444958]
[1773228852566,2.02703174,85.069,85.05,36.60594651]
[1773228852879,1.75233907,85.059,85.034,1.74049679]
[1773228854368,3.69383402,85.097,85.034,1.74049679]
[1773228854369,1.75233907,85.064,85.034,1.74049679]
[1773228858297,1.75233907,85.081,85.051,1.74049679]
[1773228858598,1.75233907,85.089,85.061,1.74049679]
[1773228859784,1.75233907,85.089,85.05,3.53195368]
[1773228859785,1.81013231,85.079,85.051,1.90008089]
[1773228862377,1.81013231,85.089,85.051,1.90008089]
[1773228865896,1.81013231,85.094,85.061,1.90008089]
[1773228866074,1.81013231,85.099,85.061,1.90008089]
[1773228866500,1.81013231,85.099,85.049,2.08]
[1773228866501,5.34891816,85.11,85.071,1.90008089]
[1773228867094,1.81013231,85.109,85.071,1.90008089]
[1773228867295,1.81013231,85.109,85.081,1.90008089]
[1773228867479,1.81013231,85.109,85.071,1.90008089]
[1773228867683,3.53878585,85.1,85.071,1.90008089]
[1773228867890,1.81013231,85.099,85.071,1.90008089]
[1773228868290,1.81013231,85.099,85.061,1.90008089]
[1773228869101,1.81013231,85.109,85.071,1.90008089]
[1773228869612,1.81013231,85.115,85.081,1.90008089]
[1773228870706,1.81013231,85.109,85.081,1.90008089]
[1773228871292,1.81013231,85.115,85.081,1.90008089]
[1773228871607,1.81013231,85.121,85.091,1.90008089]
[1773228871794,9.51228074,85.119,85.091,1.90008089]
[1773228872983,7.70214843,85.119,85.091,1.90008089]
[1773228873689,9.51228074,85.119,85.091,1.90008089]
[1773228874018,1.81013231,85.118,85.091,1.90008089]
[1773228876419,1.81013231,85.109,85.081,1.90008089]
[1773228880610,1.81013231,85.118,85.081,1.90008089]
[1773228881288,1.81013231,85.118,85.09,3.53878585]
[1773228881500,1.81013231,85.118,85.091,1.90008089]
[1773228887706,1.81013231,85.118,85.081,1.90008089]
[1773228901120,7.70214843,85.119,85.091,1.80381095]
[1773228901306,1.77303081,85.13,85.101,1.80381095]
[1773228901631,1.77303081,85.136,85.101,1.80381095]
[1773228901826,1.77303081,85.143,85.111,1.80381095]
[1773228902734,1.77303081,85.149,85.111,1.80381095]
[1773228905005,1.77303081,85.149,85.121,1.80381095]
[1773228905212,1.77303081,85.155,85.121,1.80381095]
[1773228905936,1.77303081,85.155,85.131,1.80381095]
[1773228907114,1.97303081,85.16,85.131,1.80381095]
[1773228912837,1.77303081,85.159,85.123,1.80381095]
[1773228916042,1.77303081,85.157,85.123,1.80381095]
[1773228921051,0.2,85.16,85.131,1.79035051]
[1773228921544,1.90809015,85.149,85.121,1.79035051]
[1773228921722,1.90809015,85.154,85.131,1.79035051]
[1773228921922,0.2,85.16,85.131,1.79035051]
[1773228923664,2.10809015,85.16,85.131,1.79035051]
[1773228923836,0.2,85.16,85.131,1.79035051]
[1773228927140,2.10809015,85.16,85.131,1.79035051]
[1773228927729,0.2,85.16,85.141,1.79035051]
[1773228929139,0.2,85.16,85.151,1.79035051]
[1773228931848,2.10809015,85.16,85.141,1.79035051]
[1773228932042,1.90809015,85.159,85.131,1.79035051]
[1773228932240,1.90809015,85.159,85.121,1.79035051]
[1773228940660,1.90809015,85.149,85.116,1.79035051]
[1773228941073,1.90809015,85.149,85.121,1.79035051]
[1773228947057,1.90809015,85.149,85.111,1.79035051]
[1773228947444,1.90809015,85.147,85.111,1.79035051]
[1773228948074,1.90809015,85.149,85.121,1.79035051]
[1773228950877,0.14216157,85.148,85.111,1.88390089]
[1773228951083,1.81827512,85.119,85.096,1.88390089]
[1773228951280,1.81827512,85.119,85.081,1.88390089]
[1773228958975,0.14216157,85.136,85.081,1.88390089]
[1773228958976,5.37164988,85.11,85.081,1.88390089]
[1773228959277,1.83983385,85.11,85.081,1.88390089]
[1773228959972,1.83983385,85.109,85.081,1.88390089]
[1773228963488,1.83983385,85.099,85.061,1.77520106]
[1773228963980,1.83983385,85.111,85.061,1.77520106]
[1773228964167,3.53181603,85.11,85.071,1.77520106]
[1773228964372,1.83983385,85.109,85.071,1.77520106]
[1773228965286,1.83983385,85.109,85.081,1.77520106]
[1773228971395,1.83983385,85.114,85.081,1.77520106]
[1773228971772,3.53181603,85.11,85.081,1.77520106]
[1773228971979,5.37164988,85.11,85.081,1.77520106]
[1773228972400,1.83983385,85.119,85.081,1.77520106]
[1773228973470,1.83983385,85.124,85.091,1.77520106]
[1773228973674,3.53181603,85.12,85.091,1.77520106]
[1773228974081,5.37164988,85.12,85.091,1.77520106]
[1773228974291,1.83983385,85.119,85.091,1.77520106]
[1773228974876,1.83983385,85.109,85.091,1.77520106]
[1773228975598,1.83983385,85.119,85.091,1.77520106]
[1773228981001,1.87709255,85.109,85.071,1.77897644]
[1773228981401,1.87709255,85.109,85.081,1.77897644]
[1773228981702,1.87709255,85.119,85.081,1.77897644]
[1773228982289,1.87709255,85.099,85.062,1.77897644]
[1773228983396,1.87709255,85.107,85.071,1.77897644]
[1773228984101,1.87709255,85.107,85.081,1.77897644]
[1773228991017,1.87709255,85.118,85.081,1.77897644]
[1773228993092,1.87709255,85.089,85.051,1.77897644]
[1773228993299,1.87709255,85.079,85.051,1.77897644]
[1773228993600,1.87709255,85.069,85.051,1.77897644]
[1773228993798,1.87709255,85.069,85.04,1.77897644]
[1773228995503,1.87709255,85.059,85.031,1.77897644]
[1773228999605,1.87709255,85.064,85.031,1.77897644]
[1773229006503,3.53741499,85.06,85.031,1.77897644]
[1773229006703,1.87709255,85.059,85.031,1.77897644]
[1773229007519,1.87709255,85.039,85.02,0.1]
[1773229008824,1.87709255,85.06,85.031,1.77897644]
[1773229009129,1.87709255,85.069,85.031,1.77897644]
[1773229013524,1.87709255,85.069,85.041,1.78692778]
[1773229021937,1.88286679,85.079,85.041,1.78692778]
[1773229025436,1.88286679,85.069,85.041,1.78692778]
[1773229025937,1.88286679,85.059,85.031,1.84050666]
[1773229026445,1.88286679,85.059,85.022,1.84050666]
[1773229030745,1.88286679,85.059,85.031,1.84050666]
[1773229039435,1.88286679,85.063,85.041,1.84050666]
[1773229039730,1.78731582,85.089,85.051,1.87469797]
[1773229039930,1.78731582,85.089,85.061,1.87469797]
[1773229041135,1.78731582,85.089,85.07,5.41211296]
[1773229041558,1.78731582,85.105,85.071,1.87469797]
[1773229041737,1.78731582,85.105,85.081,1.87469797]
[1773229042134,1.78731582,85.105,85.071,1.87469797]
[1773229046662,1.78731582,85.104,85.071,1.87469797]
[1773229047852,1.78731582,85.104,85.05,3.53754428]
[1773229047853,104.9,85.105,85.081,1.87469797]
[1773229048063,9.47869487,85.106,85.081,1.87469797]
[1773229048859,1.78731582,85.105,85.081,1.87469797]
[1773229049059,1.78731582,85.105,85.09,3.53754428]
[1773229049956,1.78731582,85.105,85.07,3.53754428]
[1773229051962,1.78731582,85.105,85.071,1.87469797]
[1773229055867,1.78731582,85.104,85.071,1.87469797]
[1773229057352,1.78731582,85.104,85.07,3.53754428]
[1773229057560,104.9,85.105,85.07,3.53754428]
[1773229057561,1.78731582,85.102,85.07,3.53754428]
[1773229057758,1.78731582,85.099,85.066,1.87469797]
[1773229057958,1.78731582,85.097,85.066,1.87469797]
[1773229058782,1.78731582,85.095,85.066,1.87469797]
[1773229058965,1.78731582,85.095,85.07,3.53754428]
[1773229059567,1.78731582,85.095,85.066,1.87469797]
[1773229060564,1.78731582,85.095,85.07,3.53754428]
[1773229062471,1.78731582,85.095,85.07,5.41224225]